fUSD/lending_fUSD_20240223
["ID","MTS","AMOUNT","RATE_DAILY","PERIOD"]
[314976615,1708710647813,-500.0,0.00029289,2]
[314976616,1708710647823,-624.47,0.00029289,2]
[314976617,1708710647832,-500.0,0.00029289,2]
[314976618,1708710647841,-180.87415184,0.0002929,3]
[314976619,1708710647850,-153.74027557,0.00029292,2]
[314976620,1708710647859,-150.0,0.00029297,2]
[314976621,1708710647868,-500.0,0.00029299,2]
[314976622,1708710647878,-500.0,0.00029299,2]
[314976623,1708710647886,-500.0,0.00029299,2]
[314976624,1708710647896,-295.50220637,0.00029299,2]
[314976625,1708710647905,-555.57,0.00029299,2]
[314976626,1708710647914,-500.0,0.00029299,2]
[314976627,1708710647925,-347.56,0.000293,2]
[314976628,1708710647934,-500.0,0.000293,2]
[314976629,1708710647943,-500.0,0.000293,2]
[314976630,1708710647951,-500.0,0.000293,2]
[314976631,1708710647960,-502.84,0.000293,2]
[314976632,1708710647969,-500.0,0.000293,2]
[314976633,1708710647978,-573.0,0.000293,2]
[314976634,1708710647987,-500.0,0.000293,2]
[314976635,1708710647996,-500.0,0.000293,2]
[314976636,1708710648006,-500.0,0.000293,2]
[314976637,1708710648015,-500.0,0.000293,2]
[314976638,1708710648024,-500.0,0.000293,2]
[314976639,1708710648033,-500.0,0.000293,2]
[314976640,1708710648042,-500.0,0.000293,2]
[314976641,1708710648051,-500.0,0.000293,2]
[314976642,1708710648060,-500.0,0.000293,2]
[314976643,1708710648069,-500.0,0.000293,2]
[314976644,1708710648078,-500.0,0.000293,2]
[314976645,1708710648087,-500.0,0.000293,2]
[314976646,1708710648097,-500.0,0.000293,2]
[314976647,1708710648106,-150.0,0.00029307,2]
[314976648,1708710648115,-573.11929172,0.00029318,2]
[314976649,1708710648124,-152.0,0.0002933,4]
[314976650,1708710648132,-300.0,0.00029332,2]
[314976651,1708710648142,-156.35719251,0.00029335,2]
[314976652,1708710648151,-150.0,0.00029342,2]
[314976653,1708710648160,-150.0,0.00029347,2]
[314976654,1708710648171,-817.85584083,0.00029348,2]
[314976655,1708710648181,-232.26554754,0.00029363,2]
[314976656,1708710648190,-300.0,0.00029364,2]
[314976657,1708710648199,-156.53,0.00029364,2]
[314976658,1708710648208,-153.31768893,0.00029387,2]
[314976659,1708710648218,-152.6064863,0.00029403,2]
[314976660,1708710648227,-150.0,0.00029404,2]
[314976661,1708710648236,-155.57626886,0.00029419,2]
[314976662,1708710648245,-500.0,0.00029426,2]
[314976663,1708710648254,-500.0,0.00029426,2]
[314976664,1708710648263,-500.0,0.00029426,2]
[314976665,1708710648272,-503.8,0.00029426,2]
[314976666,1708710648282,-500.0,0.00029426,2]
[314976667,1708710648291,-624.47,0.00029426,2]
[314976668,1708710648301,-500.0,0.00029426,2]
[314976669,1708710648312,-150.0,0.00029432,2]
[314976670,1708710648321,-560.38,0.00029436,2]
[314976671,1708710648331,-500.0,0.00029436,2]
[314976672,1708710648342,-500.0,0.00029436,2]
[314976673,1708710648351,-555.57,0.00029436,2]
[314976674,1708710648360,-155.8,0.00029436,2]
[314976675,1708710648370,-500.0,0.00029437,2]
[314976676,1708710648380,-500.0,0.00029437,2]
[314976677,1708710648390,-500.0,0.00029437,2]
[314976678,1708710648400,-502.84,0.00029437,2]
[314976679,1708710648409,-580.43860072,0.00029437,2]
[314976680,1708710648432,-573.0,0.00029437,2]
[314976681,1708710648444,-500.0,0.00029437,2]
[314976682,1708710648454,-500.0,0.00029437,2]
[314976683,1708710648464,-500.0,0.00029437,2]
[314976684,1708710648474,-500.0,0.00029437,2]
[314976685,1708710648484,-500.0,0.00029437,2]
[314976686,1708710648494,-160.0,0.00029441,2]
[314976687,1708710648503,-150.0,0.00029447,2]
[314976688,1708710648513,-154.98329938,0.00029447,2]
[314976689,1708710648523,-150.0,0.00029467,2]
[314976690,1708710648533,-5000.0,0.00029474,2]
[314976691,1708710648543,-166.16201499,0.00029492,2]
[314976692,1708710648553,-150.0,0.00029493,2]
[314976693,1708710648563,-573.11929172,0.00029495,2]
[314976694,1708710648572,-152.6064863,0.00029495,2]
[314976695,1708710648582,-438.59060177,0.000295,3]
[314976696,1708710648592,-154.02083881,0.00029503,2]
[314976697,1708710648602,-150.0,0.00029508,2]
[314976698,1708710648612,-168.45313711,0.00029509,2]
[314976699,1708710648622,-155.59752133,0.00029531,2]
[314976700,1708710648632,-150.0,0.0002954,2]
[314976701,1708710648642,-155.59752133,0.0002954,2]
[314976702,1708710648652,-150.0,0.00029545,2]
[314976703,1708710648662,-573.11929172,0.00029548,2]
[314976704,1708710648672,-150.0,0.00029561,2]
[314976705,1708710648682,-500.0,0.00029563,2]
[314976706,1708710648692,-500.0,0.00029563,2]
[314976707,1708710648701,-500.0,0.00029563,2]
[314976708,1708710648711,-503.8,0.00029563,2]
[314976709,1708710648721,-500.0,0.00029563,2]
[314976710,1708710648731,-624.47,0.00029563,2]
[314976711,1708710648742,-500.0,0.00029563,2]
[314976712,1708710648751,-150.0,0.00029566,2]
[314976713,1708710648761,-542.39,0.00029573,2]
[314976714,1708710648771,-500.0,0.00029573,2]
[314976715,1708710648781,-555.57,0.00029573,2]
[314976716,1708710648790,-150.0,0.00029574,2]
[314976717,1708710648800,-540.26722817,0.00029574,2]
[314976718,1708710648809,-604.11440789,0.00029574,2]
[314976719,1708710648819,-500.0,0.00029574,2]
[314976720,1708710648828,-502.84,0.00029574,2]
[314976721,1708710648838,-573.0,0.00029574,2]
[314976722,1708710648847,-500.0,0.00029574,2]
[314976723,1708710648857,-500.0,0.00029574,2]
[314976724,1708710648939,-500.0,0.00029574,2]
[314976725,1708710648948,-500.0,0.00029574,2]
[314976726,1708710648957,-500.0,0.00029574,2]
[314976727,1708710648966,-1350.14903785,0.00029578,2]
[314976728,1708710648975,-154.07502588,0.00029582,2]
[314976729,1708710648984,-150.0,0.00029584,2]
[314976730,1708710648994,-573.11929172,0.00029588,2]
[314976731,1708710649003,-166.66666668,0.00029594,2]
[314976732,1708710649012,-150.0,0.00029597,2]
[314976733,1708710649022,-150.0,0.00029597,2]
[314976734,1708710649030,-150.0,0.000296,2]
[314976735,1708710649039,-150.0,0.00029605,2]
[314976736,1708710649048,-573.11929172,0.00029608,2]
[314976737,1708710649057,-302.14313577,0.00029615,2]
[314976738,1708710649066,-322.96322041,0.00029622,2]
[314976739,1708710649075,-150.0,0.00029636,2]
[314976740,1708710649084,-150.0,0.00029645,2]
[314976741,1708710649094,-154.98329938,0.00029645,2]
[314976742,1708710649108,-150.0,0.00029647,2]
[314976743,1708710649117,-159.51672723,0.00029647,2]
[314976744,1708710649127,-150.0,0.00029656,2]
[314976745,1708710649136,-153.33262733,0.00029662,2]
[314976746,1708710649145,-151.0,0.00029686,30]
[314976747,1708710649154,-3000.0,0.000297,2]
[314976748,1708710649164,-176.02487109,0.000297,2]
[314976749,1708710649173,-500.0,0.000297,2]
[314976750,1708710649184,-500.0,0.000297,2]
[314976751,1708710649193,-503.8,0.000297,2]
[314976752,1708710649202,-500.0,0.000297,2]
[314976753,1708710649211,-624.47,0.000297,2]
[314976754,1708710649221,-500.0,0.000297,2]
[314976755,1708710649231,-150.0,0.00029705,2]
[314976756,1708710649240,-153.31768893,0.0002971,2]
[314976757,1708710649249,-500.0,0.0002971,2]
[314976758,1708710649259,-555.57,0.0002971,2]
[314976759,1708710649268,-500.0,0.00029711,2]
[314976760,1708710649278,-502.84,0.00029711,2]
[314976761,1708710649287,-573.0,0.00029711,2]
[314976762,1708710649296,-500.0,0.00029711,2]
[314976763,1708710649307,-337.01506413,0.00029711,2]
[314976764,1708710649318,-500.0,0.00029711,2]
[314976765,1708710649329,-278.0,0.00029711,2]
[314976766,1708710649339,-500.0,0.00029711,2]
[314976767,1708710649351,-250.43078722,0.00029711,2]
[314976768,1708710649364,-150.0,0.00029712,2]
[314976769,1708710649374,-26346.0,0.00029714,5]
[314976770,1708710649384,-150.0,0.00029714,2]
[314976771,1708710649393,-50000.0,0.00029719,7]
[314976772,1708710649403,-12453.48469255,0.00029719,7]
[314976773,1708710649414,-5791.17223989,0.00029719,5]
[314976774,1708710649424,-50000.0,0.00029719,7]
[314976775,1708710649433,-49900.83035966,0.00029719,7]
[314976776,1708710649443,-44614.19722251,0.00029719,7]
[314976777,1708710649453,-16287.25047514,0.00029719,7]
[314976778,1708710649462,-5768.45390758,0.00029719,7]
[314976779,1708710649472,-1062.58235876,0.0002972,2]
[314976780,1708710649481,-155.14487319,0.00029724,2]
[314976781,1708710649492,-1062.58235876,0.00029731,2]
[314976782,1708710649502,-168.7526751,0.00029734,2]
[314976783,1708710649511,-150.0,0.00029746,2]
[314976784,1708710649520,-5125.87665496,0.00029748,4]
[314976785,1708710649530,-172.0,0.00029751,2]
[314976786,1708710649539,-151.54644394,0.00029758,2]
[314976787,1708710649549,-4739.5849503,0.0002976,2]
[314976788,1708710649559,-150.0,0.00029781,2]
[314976789,1708710649568,-1062.58235876,0.00029793,2]
[314976790,1708710649577,-300.0,0.00029796,2]
[314976791,1708710649586,-150.0,0.00029798,2]
[314976792,1708710649595,-153.31768893,0.00029799,2]
[314976793,1708710649605,-200.0,0.000298,2]
[314976794,1708710649614,-200.0,0.000298,2]
[314976795,1708710649623,-469.0,0.000298,18]
[314976796,1708710649632,-1315.6412712,0.000298,2]
[314976797,1708710649641,-275.5,0.000298,2]
[314976798,1708710649650,-150.0,0.00029803,2]
[314976799,1708710649659,-150.0,0.00029807,2]
[314976800,1708710649669,-1500.0,0.00029812,2]
[314976801,1708710649678,-150.0,0.00029812,2]
[314976802,1708710649687,-150.0,0.00029814,2]
[314976803,1708710649695,-155.14487319,0.00029816,2]
[314976804,1708710649705,-357.11,0.00029835,2]
[314976805,1708710649714,-573.11929172,0.00029835,2]
[314976806,1708710649723,-500.0,0.00029837,2]
[314976807,1708710649732,-500.0,0.00029837,2]
[314976808,1708710649742,-503.8,0.00029837,2]
[314976809,1708710649751,-500.0,0.00029837,2]
[314976810,1708710649760,-624.47,0.00029837,2]
[314976811,1708710649770,-500.0,0.00029837,2]
[314976812,1708710649779,-500.0,0.00029847,2]
[314976813,1708710649789,-555.57,0.00029847,2]
[314976814,1708710649799,-500.0,0.00029848,2]
[314976815,1708710649808,-502.84,0.00029848,2]
[314976816,1708710649817,-573.0,0.00029848,2]
[314976817,1708710649831,-500.0,0.00029848,2]
[314976818,1708710649840,-500.0,0.00029848,2]
[314976819,1708710649850,-492.94729955,0.00029848,2]
[314976820,1708710649859,-300.0,0.00029854,2]
[314976821,1708710649869,-212.52118649,0.00029855,2]
[314976822,1708710649878,-1500.0,0.00029857,2]
[314976823,1708710649888,-322.92814137,0.0002986,2]
[314976824,1708710649897,-152.6064863,0.00029869,2]
[314976825,1708710649907,-573.11929172,0.0002987,2]
[314976826,1708710649916,-150.0,0.00029875,2]
[314976827,1708710649927,-152.6064863,0.00029878,2]
[314976828,1708710649936,-300.0,0.00029882,2]
[314976829,1708710649946,-212.52118649,0.00029883,2]
[314976830,1708710649955,-300.0,0.00029886,2]
[314976831,1708710649965,-300.0,0.00029888,2]
[314976832,1708710649975,-167.87801701,0.00029888,2]
[314976833,1708710649985,-168.7206667,0.0002989,2]
[314976834,1708710649994,-169.95,0.00029893,2]
[314976835,1708710650004,-198.6628352,0.00029895,2]
[314976836,1708710650013,-2991.5887472,0.00029895,2]
[314976837,1708710650022,-150.0,0.00029897,2]
[314976838,1708710650032,-212.52118649,0.00029898,2]
[314976839,1708710650041,-170.35022239,0.000299,17]
[314976840,1708710650051,-150.0,0.00029903,2]
[314976841,1708710650060,-817.85584083,0.00029903,2]
[314976842,1708710650071,-150.0,0.00029905,2]
[314976843,1708710650081,-150.0,0.00029912,2]
[314976844,1708710650091,-151.49591866,0.00029913,2]
[314976845,1708710650101,-212.52118649,0.00029914,2]
[314976846,1708710650111,-776.23820374,0.00029915,2]
[314976847,1708710650121,-150.0,0.00029916,2]
[314976848,1708710650131,-150.0,0.0002992,2]
[314976849,1708710650141,-150.0,0.00029922,2]
[314976850,1708710650150,-150.0,0.00029922,2]
[314976851,1708710650160,-1062.58235876,0.00029923,2]
[314976852,1708710650169,-150.0,0.00029931,2]
[314976853,1708710650179,-168.45313711,0.00029944,2]
[314976854,1708710650188,-1062.58235876,0.00029949,2]
[314976855,1708710650198,-1062.58235876,0.0002995,2]
[314976856,1708710650208,-1173.31418889,0.0002996,2]
[314976857,1708710650217,-1000.0,0.00029962,2]
[314976858,1708710650226,-150.0,0.00029971,2]
[314976859,1708710650236,-152.0,0.00029972,5]
[314976860,1708710650246,-500.0,0.00029974,2]
[314976861,1708710650255,-500.0,0.00029974,2]
[314976862,1708710650264,-503.8,0.00029974,2]
[314976863,1708710650274,-500.0,0.00029974,2]
[314976864,1708710650284,-624.47,0.00029974,2]
[314976865,1708710650294,-500.0,0.00029974,2]
[314976866,1708710650305,-573.11929172,0.00029976,2]
[314976867,1708710650315,-150.0,0.00029984,2]
[314976868,1708710650325,-500.0,0.00029984,2]
[314976869,1708710650334,-555.57,0.00029984,2]
[314976870,1708710650345,-156.57354396,0.00029985,2]
[314976871,1708710650356,-500.0,0.00029985,2]
[314976872,1708710650369,-502.84,0.00029985,2]
[314976873,1708710650379,-573.0,0.00029985,2]
[314976874,1708710650389,-500.0,0.00029985,2]
[314976875,1708710650401,-500.0,0.00029985,2]
[314976876,1708710650412,-169.19547487,0.00029988,2]
[314976877,1708710650424,-169.76281479,0.0002999,2]
[314976878,1708710650435,-7245.3199426,0.0002999,2]
[314976879,1708710650445,-3658.1410986,0.0002999,2]
[314976880,1708710650455,-1449.0639886,0.0002999,2]
[314976881,1708710650465,-98915.6459877,0.0002999,2]
[314976882,1708710650475,-154.07502588,0.00029995,2]
[314976883,1708710650486,-158.27419454,0.00029999,2]
[314976884,1708710650495,-4983.01824528,0.00029999,2]
[314976885,1708710650504,-80107.530119,0.00029999,2]
[314976886,1708710650513,-87324.853137,0.00029999,2]
[314976887,1708710650523,-500.0,0.00029999,2]
[314976888,1708710650533,-500.0,0.00029999,2]
[314976889,1708710650544,-500.0,0.00029999,2]
[314976890,1708710650554,-500.0,0.00029999,2]
[314976891,1708710650567,-500.0,0.00029999,2]
[314976892,1708710650578,-196.44862301,0.00029999,2]
[314976893,1708710650588,-500.0,0.00029999,2]
[314976894,1708710650598,-313.20650594,0.00029999,2]
[314976895,1708710650609,-500.0,0.00029999,2]
[314976896,1708710650618,-203.2375765,0.00029999,2]
[314976897,1708710650627,-500.0,0.00029999,2]
[314976898,1708710650636,-500.0,0.00029999,2]
[314976899,1708710650646,-500.0,0.00029999,2]
[314976900,1708710650655,-408.87426724,0.00029999,2]
[314976901,1708710650665,-533.19171167,0.00029999,2]
[314976902,1708710650675,-497.96141561,0.00029999,2]
[314976903,1708710650684,-586.84392614,0.00029999,2]
[314976904,1708710650693,-298.2927159,0.00029999,2]
[314976905,1708710650703,-500.0,0.00029999,2]
[314976906,1708710650713,-389.48781476,0.00029999,2]
[314976907,1708710650722,-1670945.7174059,0.0003,4]
[314976908,1708710650732,-266.52225003,0.0003,2]
[314976909,1708710650742,-1000.0,0.0003,2]
[314976910,1708710650751,-193894.04099209,0.0003,2]
[314976911,1708710650995,-684201.11418554,0.0003,2]
[314976912,1708710651007,-262127.94904129,0.0003,2]
[314976913,1708710651027,-8887.2270698,0.0003,2]
[314976914,1708710651038,-3083.8432501,0.0003,2]
[314976915,1708710651049,-2819.6975772,0.0003,2]
[314976916,1708710651060,-1415.73111081,0.0003,2]
[314976917,1708710651130,-500.0,0.00028889,2]
[314976918,1708710651140,-720.58266872,0.0003,2]
[314976919,1708710651151,-48971.02583574,0.0003,2]
[314976920,1708710651163,-4490.97,0.0003,2]
[314976921,1708710651189,-327.68239989,0.0002833,2]
[314976922,1708710651202,-321.97760011,0.0002833,2]
[314976923,1708710651212,-240.63235399,0.00028882,4]
[314976924,1708710651222,-2718.68989026,0.0003,2]
[314976925,1708710651287,-500.0,0.00027397,2]
[314976926,1708710651297,-500.0,0.00027534,2]
[314976927,1708710651309,-11.326818,0.0002833,2]
[314976928,1708710651334,-500.0,0.00027671,2]
[314976929,1708710651345,-95.54581989,0.0002833,2]
[314976930,1708710651357,-95.3365448,0.0002833,2]
[314976931,1708710651367,-240.63235399,0.00028848,4]
[314976932,1708710651376,-173.28430121,0.00028861,4]
[314976933,1708710670305,1068914.15860039,0.00023,2]
[314976934,1708710670338,2000000.0,0.00023,2]
[314976935,1708710670363,2000000.0,0.00023,2]
[314976936,1708710670390,7745577.96692719,0.00023,2]
[314976937,1708710695693,1654.99962661,0.0002,2]
[314976938,1708710708975,150.0,0.0002,2]
[314976939,1708710708996,137.41743235,0.0002,2]
[314976940,1708710714934,12.58256765,6.94e-05,2]
[314976941,1708710714954,289.74497027,6.94e-05,2]
[314976942,1708710714974,546.08516622,6.94e-05,2]
[314976947,1708710819151,150.0,0.0002313,2]
[314976948,1708710819171,150.0,0.0002313,2]
[314976949,1708710819191,150.0,0.0002313,2]
[314976950,1708710819211,150.0,0.0002313,2]
[314976951,1708710819231,150.0,0.0002313,2]
[314976952,1708710819250,150.0,0.0002313,2]
[314976953,1708710819269,150.0,0.0002313,2]
[314976954,1708710819289,150.0,0.0002313,2]
[314976955,1708710819312,150.0,0.0002313,2]
[314976956,1708710819331,150.0,0.0002313,2]
[314976957,1708710819351,150.0,0.0002313,2]
[314976958,1708710819371,150.0,0.0002313,2]
[314976959,1708710819394,160.25502973,0.0002313,2]
[314976960,1708710819417,17624.98586683,0.0002313,2]
[314976961,1708710832597,150.0,0.00023,2]
[314976962,1708710832618,150.0,0.00023,2]
[314976963,1708710832640,150.0,0.00023,2]
[314976964,1708710832660,150.0,0.00023,2]
[314976965,1708710832680,150.0,0.00023,2]
[314976966,1708710832699,150.0,0.00023,2]
[314976967,1708710832719,2234595.96241315,0.00023,2]
[314976968,1708710832738,2437117.77618694,0.00023,2]
[314976969,1708710849820,150.0,0.0002,2]
[314976970,1708710849842,150.0,0.0002,2]
[314976971,1708710849862,150.0,0.0002,2]
[314976972,1708710849883,150.0,0.0002,2]
[314976973,1708710849903,190.47,0.0002,2]
[314976974,1708710849925,16281.59293254,0.0002,2]
[314976975,1708710865178,215.82244978,0.000137,2]
[314976976,1708710865736,156.55221049,0.00022,2]
[314976977,1708710866146,206.96229338,0.0001,2]
[314976980,1708711045002,151.0,0.0002881,120]
[314976984,1708711564583,204.0,0.00022132,2]
[314976986,1708711650191,151.0,0.00028739,120]
[314976994,1708711832280,-449.27,0.00023122,2]
[314976995,1708711832290,-364.0516,0.000232,2]
[314976996,1708711832397,-598.69370516,0.000232,2]
[314976997,1708711832407,-156.3679226,0.0002499,2]
[314976998,1708711832417,-150.0,0.00025,2]
[314976999,1708711832427,-750.0,0.00025,3]
[314977000,1708711832436,-174.96,0.00025088,2]
[314977001,1708711832448,-1008.53065537,0.00025088,2]
[314977002,1708711832458,-300.0,0.00025089,2]
[314977003,1708711832469,-150.0,0.00025089,2]
[314977004,1708711832480,-150.0,0.00025089,2]
[314977005,1708711832490,-4506.7663877,0.0002509,2]
[314977006,1708711832499,-541.10078993,0.0002509,2]
[314977007,1708711832511,-506.86,0.0002509,2]
[314977009,1708711838280,-738.12026093,0.0002509,2]
[314977010,1708711838293,-1158.4809086,0.0002509,2]
[314977011,1708711838303,-156.36792253,0.00025096,2]
[314977012,1708711838314,-150.0,0.000252,2]
[314977013,1708711838325,-1129.06264504,0.000252,2]
[314977014,1708711838340,-1542.88735496,0.000252,2]
[314977015,1708711838351,-156.36792253,0.00025203,2]
[314977016,1708711838361,-150.99,0.00025203,2]
[314977017,1708711838373,-557.81,0.00025241,2]
[314977018,1708711838384,-620.07141291,0.00025241,2]
[314977025,1708711838665,-23279.92858709,0.00025241,2]
[314977026,1708711838675,-511.44,0.00025272,2]
[314977027,1708711838685,-2000.0,0.00025272,2]
[314977028,1708711838695,-250.0,0.00025275,2]
[314977029,1708711838709,-156.36792253,0.00025309,2]
[314977030,1708711838722,-449.27,0.00025386,2]
[314977031,1708711838733,-150.0,0.000254,2]
[314977032,1708711838745,-236.0,0.00025401,2]
[314977033,1708711838757,-156.36792253,0.00025416,2]
[314977034,1708711838770,-170.4,0.00025454,2]
[314977035,1708711838781,-1000.0,0.00025504,2]
[314977036,1708711838791,-156.36792253,0.00025522,2]
[314977037,1708711838803,-156.02,0.00025532,2]
[314977038,1708711838814,-150.0,0.000256,2]
[314977039,1708711838824,-156.36792253,0.00025629,2]
[314977040,1708711838835,-1500.0,0.00025682,2]
[314977041,1708711838848,-156.36792253,0.00025735,2]
[314977042,1708711838859,-150.0,0.00025798,2]
[314977043,1708711838871,-177.74,0.00025798,2]
[314977044,1708711838882,-200.0,0.000258,2]
[314977045,1708711838892,-156.36792253,0.00025842,2]
[314977046,1708711838905,-1500.0,0.00025916,2]
[314977047,1708711838917,-156.36792253,0.00025948,2]
[314977048,1708711838931,-150.0,0.00026,10]
[314977049,1708711838943,-259.36,0.00026,2]
[314977050,1708711838956,-503.38116168,0.00026,2]
[314977051,1708711838968,-156.36792253,0.00026055,2]
[314977052,1708711838978,-150.0,0.00026079,2]
[314977053,1708711838990,-259.36,0.00026137,2]
[314977054,1708711839002,-842.99,0.00026157,2]
[314977055,1708711839011,-156.36792253,0.00026161,2]
[314977056,1708711839022,-2816.0,0.000262,2]
[314977057,1708711839032,-156.36792253,0.00026268,2]
[314977058,1708711839042,-259.36,0.00026274,2]
[314977059,1708711839052,-150.0,0.0002628,2]
[314977060,1708711839063,-150.0,0.0002628,2]
[314977061,1708711839076,-635.917789,0.00026299,2]
[314977062,1708711839088,-472.64439452,0.000263,2]
[314977063,1708711839099,-15459.0,0.000263,2]
[314977064,1708711839110,-204.0,0.0002634,8]
[314977065,1708711839121,-150.0,0.00026346,2]
[314977066,1708711839132,-177.74,0.00026346,2]
[314977067,1708711839143,-156.36792253,0.00026374,2]
[314977068,1708711839153,-259.36,0.00026411,2]
[314977069,1708711839163,-156.36792253,0.00026481,2]
[314977070,1708711839174,-250.0,0.00026534,2]
[314977071,1708711839183,-259.36,0.00026548,2]
[314977072,1708711839193,-374.84,0.0002655,2]
[314977073,1708711839204,-156.36792253,0.00026587,2]
[314977074,1708711839215,-281.08559765,0.00026598,2]
[314977075,1708711839226,-737.91888808,0.000266,2]
[314977076,1708711839236,-281.08559762,0.00026648,2]
[314977077,1708711839246,-279.28652875,0.00026685,2]
[314977078,1708711839258,-156.36792253,0.00026694,2]
[314977079,1708711839271,-7081.7983,0.00026696,2]
[314977080,1708711839281,-10704.8903,0.00026696,2]
[314977081,1708711839292,-155.0,0.00026697,2]
[314977082,1708711839302,-2100.1158,0.00026698,2]
[314977083,1708711839312,-10743.2867,0.00026698,2]
[314977084,1708711839322,-279.3172,0.00026698,2]
[314977085,1708711839333,-2563.80012915,0.00026698,2]
[314977086,1708711839343,-6207.6916,0.00026698,2]
[314977087,1708711839354,-450.59250528,0.00026698,3]
[314977088,1708711839367,-188.38867403,0.00026698,2]
[314977089,1708711839377,-2445.44969025,0.00026698,2]
[314977090,1708711839388,-184.67087337,0.00026698,2]
[314977091,1708711839398,-548.5901672,0.00026698,2]
[314977092,1708711839408,-550.96520611,0.00026698,2]
[314977093,1708711839418,-281.08559762,0.00026698,2]
[314977094,1708711839429,-236.0,0.00026771,2]
[314977095,1708711839445,-215.17130253,0.00026788,2]
[314977096,1708711839456,-30270.99156364,0.00026796,2]
[314977097,1708711839468,-1063533.61207516,0.00026798,2]
[314977098,1708711839479,-6429.78037177,0.00026798,2]
[314977099,1708711839491,-2339.4598,0.00026799,2]
[314977100,1708711839502,-535846.005,0.00026799,2]
[314977101,1708711839514,-2372.5542,0.00026799,2]
[314977102,1708711839525,-1691.0472,0.00026799,2]
[314977103,1708711839536,-156.36792253,0.000268,2]
[314977104,1708711839547,-5000.0,0.000268,2]
[314977105,1708711839558,-250.0,0.00026808,2]
[314977106,1708711839569,-150.0,0.00026828,2]
[314977107,1708711839581,-548.59016718,0.00026848,2]
[314977108,1708711839592,-215.17130253,0.0002689,2]
[314977109,1708711839603,-150.0,0.00026894,2]
[314977110,1708711839615,-177.74,0.00026894,2]
[314977111,1708711839627,-5388.1413,0.00026899,2]
[314977112,1708711839638,-2529.717,0.000269,2]
[314977113,1708711839650,-245000.0,0.000269,2]
[314977114,1708711839662,-333.9004,0.000269,2]
[314977115,1708711839673,-160.8811,0.000269,2]
[314977116,1708711839684,-1343.6462758,0.000269,2]
[314977117,1708711839694,-690.80895187,0.000269,2]
[314977118,1708711839709,-768.70714775,0.000269,2]
[314977119,1708711839721,-297.9942528,0.000269,2]
[314977120,1708711839735,-1039.0,0.00026904,2]
[314977121,1708711839746,-511.44,0.00026916,2]
[314977122,1708711839758,-1500.0,0.00026979,2]
[314977123,1708711839771,-548.59016718,0.00026998,2]
[314977124,1708711839783,-182821.56844076,0.00027,2]
[314977125,1708711839794,-800.0,0.00027,3]
[314977126,1708711839805,-250.0,0.00027082,2]
[314977127,1708711839815,-548.59016718,0.00027147,2]
[314977128,1708711839827,-98824.47313889,0.0002728,3]
[314977129,1708711839837,-548.59016718,0.00027297,2]
[314977130,1708711839848,-1500.0,0.00027369,2]
[314977131,1708711839860,-284.27805913,0.0002737,10]
[314977132,1708711839871,-500.0,0.00027397,2]
[314977133,1708711839881,-500.0,0.00027397,2]
[314977134,1708711839892,-500.0,0.00027397,2]
[314977135,1708711839903,-500.0,0.00027397,2]
[314977136,1708711839914,-500.0,0.00027397,2]
[314977137,1708711839925,-500.0,0.00027397,2]
[314977138,1708711839937,-516.50135405,0.00027397,2]